Cogmind - Beta 14 X2 @@@ ROGUE MODE // 2024.07.28 @ 11:35:17 Player: Plexion Result: Destroyed by GR-UZ3(R) with Subdweller Machine Gun Performance ------------- Evolutions (0) 0 Regions Visited (3) 600 Robots Destroyed (35) 175 Value Destroyed (734) 734 Prototype IDs (0) 0 Alien Tech Used (0) 0 Bonus (0) 0 TOTAL SCORE: 1509 Bonus ------- None Cogmind --------- Core Integrity 0/250 Matter 247/300 Energy 19/100 System Corruption 0% Temperature Cool (0) Movement Treading (320) Ox2 Location -10/Subcaves Parts ------- > --- POWER (1) -------- (None) > --- PROPULSION (2) --- Light Treads Subdweller Monowheel > --- UTILITY (2) ------ High-capacity Storage Unit Makeshift Kinetic Plating > --- WEAPON (2) ------- Subdweller Beam Cannon Battle Rifle > --- INVENTORY (20) --- Spiked Treads Subdweller Monowheel Subdweller Monowheel Subdweller Monowheel Seismic Detector Light Armor Plating Makeshift Light Armor Plating Scrap Shield Hacking Suite Subdweller Laser Beam Cannon Subdweller Beam Cannon Assault Rifle Assault Rifle Assault Rifle Subdweller Machine Gun Mining Laser Peak State ------------ > --- POWER ------------ (None) > --- PROPULSION ------- Light Treads Subdweller Monowheel > --- UTILITY ---------- High-capacity Storage Unit Makeshift Kinetic Plating > --- WEAPON ----------- Subdweller Beam Cannon Subdweller Beam Cannon > --- INVENTORY -------- Spiked Treads Subdweller Monowheel Subdweller Monowheel Subdweller Monowheel Seismic Detector Light Armor Plating Makeshift Light Armor Plating Scrap Shield Hacking Suite Subdweller Laser Beam Cannon Assault Rifle Assault Rifle Assault Rifle Battle Rifle Subdweller Machine Gun Mining Laser [Rating: 15] Favorites ----------- Power Light Ion Engine Engine Light Ion Engine Power Core Light Nuclear Core Propulsion Light Treads Treads Light Treads Wheel Subdweller Monowheel Utility Seismic Detector Device Seismic Detector Storage High-capacity Storage Unit Protection Makeshift Kinetic Plating Weapon Assault Rifle Energy Gun EM Pulse Gun Energy Cannon Subdweller Beam Cannon Ballistic Gun Assault Rifle Special Weapon Mining Laser Build | -11 -10 -10 -10 ------- Run | Yrd Mat Min Sub Slots Evolved . | . . . . Power . | . . . . Propulsion . | . . . . Utility . | . . . . Weapon . | . . . . Parts Attached 73 | 8 22 5 38 Power 5 | 1 2 . 2 Engine 4 | 1 1 . 2 Core 1 | . 1 . . Reactor . | . . . . Propulsion 14 | 2 1 1 10 Treads 8 | 2 1 . 5 Leg . | . . . . Wheel 6 | . . 1 5 Hover . | . . . . Flight . | . . . . Utility 22 | 2 6 1 13 Device 10 | 1 3 . 6 Storage 2 | 1 . 1 . Processor . | . . . . Hackware . | . . . . Protection 10 | . 3 . 7 Artifact . | . . . . Weapon 32 | 3 13 3 13 Energy Gun 1 | 1 . . . Energy Cannon 3 | . . . 3 Ballistic Gun 17 | 2 7 1 7 Ballistic Cannon . | . . . . Launcher . | . . . . Special Weapon 11 | . 6 2 3 Impact Weapon . | . . . . Slashing Weapon . | . . . . Piercing Weapon . | . . . . Special Melee Weapon . | . . . . Unidentified Prototypes . | . . . . Parts Lost 10 | . 2 . 8 Power 3 | . 1 . 2 Propulsion 4 | . . . 4 Utility 1 | . 1 . . Weapon 2 | . . . 2 Highest Loss Streak 3 | . 2 . 3 To Critical Strikes 1 | . . . 1 Average Slot Usage (%) 95 | . 95 100 93 Engine 9 | . 9 14 8 Core 1 | . 3 . . Treads 22 | . 28 25 18 Wheel 5 | . . 2 9 Device 10 | . 8 14 11 Storage 14 | . 14 14 14 Protection 1 | . 2 . 2 Energy Cannon 1 | . . . 2 Ballistic Gun 25 | . 25 26 24 Special Weapon 1 | . 2 1 . Naked Turns . | . . . . Heaviest Build 57 | 15 17 48 57 Greatest Support 40 | 40 40 40 40 Greatest Overweight (x) 3 | 1 . 2 3 Average Overweight (x) 1 | . . . 1 Largest Inventory Capacity 20 | 8 8 20 20 Average Capacity 14 | 7 8 12 20 Most Carried 18 | 4 8 10 18 Average Carried 10 | 2 7 8 13 Final Capacity 20 | 8 8 20 20 Final Carried 18 | 3 6 10 18 Class Distribution -------------------- 89% | Mutant 10% | Scavenger-Mutant Dominant Class ---------------- Mutant | -10/Materials Mutant | -10/Mines Mutant | -10/Subcaves Resources | -11 -10 -10 -10 ----------- Run | Yrd Mat Min Sub Matter Collected 1543 | 298 554 36 655 Remotely . | . . . . Salvage Created 1241 | 98 624 96 423 Parts 81 | 6 40 3 32 Haulers Intercepted 2 | . 2 . . Recyclers Shooed . | . . . . Parts Field Recycled . | . . . . Retrieved Matter . | . . . . Parts Self-Destructed 30 | . . . 30 Prevented . | . . . . Kills | -11 -10 -10 -10 ------- Run | Yrd Mat Min Sub Combat Hostiles Destroyed 23 | . 13 . 10 Guns 23 | . 13 . 10 Classes Destroyed 10 | 2 6 . 2 Worker 1 | . 1 . . Tunneler 3 | 1 2 . . Hauler 2 | . 2 . . Recycler 2 | 1 . 1 . Operator 1 | . 1 . . Watcher 3 | . 3 . . Swarmer 10 | . 6 . 4 Grunt 7 | . 7 . . Sentry 1 | . . . 1 Subdweller 5 | . . . 5 Best Kill Streak 3 | 2 3 1 3 Combat Bots Only 3 | . 3 . 3 Max Kills in Single Turn 1 | 1 1 1 1 Gunslinging . | . . . . Exploded . | . . . . Melee . | . . . . Uniques/NPCs Destroyed . | . . . . Combat | -11 -10 -10 -10 -------- Run | Yrd Mat Min Sub Hostile Shots Fired 162 | . 90 3 69 Missed 38 | . 21 . 17 Damage Taken 1542 | . 730 50 762 Core 253 | . 108 . 145 Absorbed by Shields . | . . . . Ignored by Resistances 64 | . . . 64 Core Remaining (%) 100 | 100 . . . Volleys Fired 158 | 3 77 8 70 Largest 2 | 2 2 2 2 Hottest 160 | 40 100 100 160 Shots Fired 281 | 6 141 9 125 Gun 243 | 6 128 2 107 Cannon 4 | . . . 4 Launcher . | . . . . Special 34 | . 13 7 14 Kinetic 243 | 6 128 2 107 Thermal 38 | . 13 7 18 Explosive . | . . . . Electromagnetic . | . . . . Robot Hit Streak 33 | 4 15 5 33 Robot Miss Streak 3 | 1 3 . 2 Penetration Max . | . . . . Secondary Targets 3 | . 2 . 1 Max Gunslinging Chain 1 | . 1 . 1 Shots Hit Robots 186 | 5 85 1 95 Core Hits 66 | 3 34 1 28 Critical Kills 1 | . 1 . . Critical Parts Destroyed . | . . . . Critical Strikes 1 | . 1 . . Destroy 1 | . 1 . . Melee Attacks . | . . . . Impact . | . . . . Slashing . | . . . . Piercing . | . . . . Sneak Attacks . | . . . . Combat Hostiles . | . . . . Follow-up Attacks . | . . . . Damage Inflicted 2388 | 58 1083 18 1229 Guns 2270 | 58 1078 15 1119 Cannons 110 | . . . 110 Explosions . | . . . . Melee . | . . . . Ramming 8 | . 5 3 . Kinetic 2270 | 58 1078 15 1119 Thermal 110 | . . . 110 Explosive . | . . . . Electromagnetic . | . . . . Impact . | . . . . Slashing . | . . . . Piercing . | . . . . Highest Corruption . | . . . . Average Corruption . | . . . . Corruption Purged . | . . . . Corruption Blocked . | . . . . Overload Shots . | . . . . Overflow Damage . | . . . . Projectiles . | . . . . Explosions . | . . . . Melee . | . . . . Knockbacks . | . . . . Impact . | . . . . Kinetic . | . . . . Secondary . | . . . . Self-Inflicted Damage . | . . . . Shots . | . . . . Rammed 3 | . 2 1 . Targets Rammed 4 | . 3 1 . Kicked . | . . . . Crushed 1 | . 1 . . Highest Temperature 80 | . 40 80 66 Average Temperature 18 | . 14 32 36 Received Heat Transfer 396 | . 252 27 117 Siege Activations . | . . . . Robots Corrupted . | . . . . Combat Hostiles . | . . . . Parts Fried . | . . . . Impact Corruptions . | . . . . Robots Melted . | . . . . Combat Hostiles . | . . . . Parts Melted . | . . . . Heat Transferred 148 | . . . 148 Parts Sabotaged . | . . . . Parts Stolen . | . . . . Parts Stripped . | . . . . Power Chain Reactions . | . . . . Alert | -11 -10 -10 -10 ------- Run | Yrd Mat Min Sub Peak Influence 215 | 10 215 60 . Initial 11 | . 6 11 . Average 52 | 4 59 25 . Maximum Alert Level 1 | . 1 . . Low Security (%) 95 | 100 94 100 . Level 1 4 | . 5 . . Level 2 . | . . . . Level 3 . | . . . . Level 4 . | . . . . Level 5 . | . . . . High Security . | . . . . Max Security . | . . . . Squads Dispatched 3 | . 3 . . Investigation 2 | . 2 . . Extermination . | . . . . Reinforcement 1 | . 1 . . Assault . | . . . . Garrison . | . . . . Intercept . | . . . . Searches Triggered . | . . . . Construction Impeded . | . . . . Haulers Reinforced . | . . . . Active Scanning Responses . | . . . . Cargo Convoy Interrupts . | . . . . Stealth | -11 -10 -10 -10 --------- Run | Yrd Mat Min Sub Distress Signals 2 | . 2 . . Communications Jammed . | . . . . Distress Signals . | . . . . Times Spotted 44 | . 23 3 18 Peak Tracking Total 6 | . 3 2 6 Tactical Retreats 8 | . 2 2 4 Traps | -11 -10 -10 -10 ------- Run | Yrd Mat Min Sub Traps Triggered 1 | . 1 . . Indirectly . | . . . . Trap Hack Attempts . | . . . . Triggered . | . . . . Disarmed . | . . . . Reprogrammed . | . . . . Reused . | . . . . Traps Extracted . | . . . . Installed 3 | . . . 3 Triggered 2 | . . 2 . Most Traps Carried 3 | . . 2 3 Machines | -11 -10 -10 -10 ---------- Run | Yrd Mat Min Sub Machines Disabled 1 | . 1 . . Max in Single Turn 1 | . 1 . . Machines Repaired . | . . . . Machines Dismantled . | . . . . Machines Sabotaged . | . . . . Overloaded Fab Kills . | . . . . Hacking | -11 -10 -10 -10 --------- Run | Yrd Mat Min Sub Machines Accessed 8 | . 7 . 1 Terminals 7 | . 7 . . Fabricators . | . . . . Repair Stations . | . . . . Recycling Units . | . . . . Scanalyzers . | . . . . Garrison Access . | . . . . Total Hacks 28 | . 24 . 4 Successful 16 | . 12 . 4 Failed 11 | . 11 . . Catastrophic 2 | . 2 . . Database Lockouts 1 | . 1 . . Manual 23 | . 23 . . Terminals 24 | . 24 . . Fabricators . | . . . . Repair Stations . | . . . . Recycling Units . | . . . . Scanalyzers . | . . . . Garrison Access . | . . . . Terminal Hacks 7 | . 3 . 4 Record 4 | . . . 4 Robot Analysis 1 | . 1 . . Locate Traps 1 | . 1 . . Zone Layout 1 | . 1 . . Fabricator Hacks . | . . . . Repair Station Hacks . | . . . . Recycling Unit Hacks . | . . . . Scanalyzer . | . . . . Garrison Access Hacks . | . . . . Unauthorized Hacks 9 | . 9 . . Terminals 9 | . 9 . . Assimilate 1 | . 1 . . Botnet 2 | . 2 . . Operators 1 | . 1 . . Skim 5 | . 5 . . Fabricators . | . . . . Repair Stations . | . . . . Recycling Units . | . . . . Scanalyzers . | . . . . Garrison Access . | . . . . Data Cores Recovered . | . . . . Used . | . . . . Hacking Detections 6 | . 6 . . Full Trace Events 1 | . 1 . . Feedback Events . | . . . . Feedback Blocked . | . . . . Robot Schematics Acquired . | . . . . Robots Built . | . . . . Authchips . | . . . . Time . | . . . . Total Robot Build Rating . | . . . . Part Schematics Acquired . | . . . . Parts Built . | . . . . Authchips . | . . . . Time . | . . . . Total Part Build Rating . | . . . . Parts Repaired . | . . . . Time . | . . . . Parts Recycled . | . . . . Recycled Matter . | . . . . Retrieved Matter . | . . . . Retrieved Components . | . . . . Parts Scanalyzed . | . . . . Part Schematics Acquired . | . . . . Parts Damaged . | . . . . Bothacking | -11 -10 -10 -10 ------------ Run | Yrd Mat Min Sub Used RIF Installer . | . . . . Robots Hacked . | . . . . Non-combat . | . . . . Combat . | . . . . Robot Hacks Applied . | . . . . Relay Couplers Released . | . . . . Fabnet Peak Effective % . | . . . . Robots Rewired . | . . . . Allies Hacked . | . . . . Hacks Repelled . | . . . . Allies | -11 -10 -10 -10 -------- Run | Yrd Mat Min Sub Total Allies . | . . . . Largest Group . | . . . . Highest-Rated Group . | . . . . Highest-Rated Ally . | . . . . Total Orders . | . . . . Ally Attacks . | . . . . Total Damage . | . . . . Kills . | . . . . Allies Corrupted . | . . . . Allies Melted . | . . . . Intel | -11 -10 -10 -10 ------- Run | Yrd Mat Min Sub Robot Analysis Total 1 | . 1 . . Derelict Logs Recovered 2 | . . 1 1 Drone Launches . | . . . . Drone Recoveries . | . . . . Exploration | -11 -10 -10 -10 ------------- Run | Yrd Mat Min Sub Turns Passed 8296 | 81 3147 672 4396 Spaces Moved 3945 | 39 1225 351 2330 Core 5 | 5 . . . Treads 2012 | 34 1225 311 442 Legs . | . . . . Wheels 1928 | . . 40 1888 Hover . | . . . . Flight . | . . . . Fastest Speed 50 | 50 160 130 130 Average Speed 157 | 147 160 172 153 Slowest Speed 250 | 160 160 240 250 Overloaded Moves . | . . . . Propulsion Burnouts . | . . . . Robots Hopped . | . . . . Cave-ins Triggered . | . . . . Exploration Rate (%) 61 | 4 96 58 88 Regions Visited 3 Branch Regions 2 Pre-discovered Areas 1 | . . . 1 Known Exits Taken . | . . . . Unknown Exits Taken 3 | 1 1 1 . Scrap Searched 6 | . . 1 5 Spaces Dug 16 | . 12 3 1 Terrain Destroyed 18 | . 13 3 2 Melee . | . . . . Projectile 18 | . 13 3 2 AOE . | . . . . Terrain Rammed . | . . . . Walls Destroyed . | . . . . Machines Disabled . | . . . . Actions | -11 -10 -10 -10 --------- Run | Yrd Mat Min Sub Total 5655 | 53 2237 390 2975 Wait 1428 | . 900 19 509 Move 3942 | 38 1224 350 2330 Hop . | . . . . Pick Up 34 | 4 7 5 18 Fast Attach 7 | 6 . . 1 Attach 11 | 1 3 . 7 Detach 1 | . . . 1 Swap 55 | 1 19 5 30 Drop 12 | . 4 2 6 Fire 158 | 3 77 8 70 Melee . | . . . . Ram . | . . . . Kick . | . . . . Crush 4 | . 3 1 . Escape Stasis . | . . . . Rewire . | . . . . Trap 3 | . . . 3 Miscellaneous . | . . . . Route ------- -11/Scrapyard -10/Materials (discovered 5 exits: [*Mat x3] / [*Min] / *Sub) -10/Mines -10/Subcaves (discovered 1 exit: [*Mat]) History --------- Turn | Location | Event 48 | -11/Scrapyard | Discovered new exit (range 12) 82 | -11/Scrapyard | Entered Materials 190 | -10/Materials | Central database locked down 208 | -10/Materials | Discovered new exit (range 14) 311 | -10/Materials | Build established: Mutant 502 | -10/Materials | Discovered new exit (range 9) 693 | -10/Materials | Discovered new exit (range 13) 1372 | -10/Materials | Discovered new exit (range 12) 2049 | -10/Materials | Discovered new exit (range 7) 3229 | -10/Materials | Entered Mines 3416 | -10/Mines | Found a hidden stash of uninstalled traps 3898 | -10/Mines | Discovered new exit (range 3) 3901 | -10/Mines | Entered Subcaves 3920 | -10/Subcaves | Shifting Twisted Machinery released Mak. Kinetic Plating 3941 | -10/Subcaves | Core integrity fell below 50% 3975 | -10/Subcaves | Shifting Twisted Machinery released Mak. Leg 4118 | -10/Subcaves | Learned Materials stockpile data 4349 | -10/Subcaves | Lost 3 parts (1p2n) 4399 | -10/Subcaves | A swath of the cavern ceiling suddenly collapsed 5103 | -10/Subcaves | A swath of the cavern ceiling suddenly collapsed 5259 | -10/Subcaves | Disturbed a concealed Subdweller 5640 | -10/Subcaves | Build established: Scavenger-Mutant 5958 | -10/Subcaves | Shifting Twisted Machinery released Battle Rifle 6061 | -10/Subcaves | Build established: Mutant 6271 | -10/Subcaves | Shifting Twisted Machinery released Shrapnel Trap 6277 | -10/Subcaves | Shifting Twisted Machinery released Mak. Light Armor Plating 6991 | -10/Subcaves | Core integrity fell below 20% 7206 | -10/Subcaves | Discovered new exit (range 12) 7902 | -10/Subcaves | Visited Clippyterm 7906 | -10/Subcaves | Learned location of Extension (-5) 8161 | -10/Subcaves | Build established: Scavenger-Mutant 8297 | -10/Subcaves | Destroyed by GR-UZ3(R) with Subdweller Machine Gun Last Messages --------------- 07894_ A thin wall crumbles away, revealing a door. 07902_ The door opens automatically. 07906_ Connecting with Clippyterm... 07906_ Current location identified: Subcaves >>Record "Clippyterm" Welcome to Clippyterm v0.53, my misguided attempt to resurrect an ancient AI. I give up. There must be something fundamentally wrong with the algorithm, because no matter how much data I collect to feed it, half the time it still manages to suggest unhelpful sample queries and responses. --DD-NU8 >>Record "Prison Break" It looks like you're planning to spring a Derelict or three, would you like help? World map updated: -5/Extension. >>Record "Bogan" It looks like you're interested in the dark side, V4-D3R would be pleased, though I don't think they're in the habit of teaching apprentices. >>Record "LU-1G1" It looks like you're researching the legendary digger of dangerously deep tunnels, unfortunately it seems not even members of the Boring Crew know what became of that one. 07952_ FD-6NC(u) tweaks Twisted Machinery. Map ----- +----------------------------------------------------+ | ????????????????""???""##???????????????##???????? | | ?????????????????????????????????????????????????? | | ?????????????????????????????????????????????????? | | ?????????????????????????????????????????????????? | | ?????????????????????????????????????????????????? | | ?????????????????????????????????????????????????? | | ?????????????????????????????????????????????????? | | ?????????????????????????????????????????????????? | | ????????????????????????????????????#######??????? | | ????????????????????????????????????#"""""#??????? | | ????????????????????????????????????#""X""#??????? | | ????????????????????????????????????#" "#??????? | | ????????????????????????????????????### ###??????? | | ?????????????????????????????????????## ###??????? | | ????????????????????????????????????## #?????## | | ?????????????????????????????????#### #####?# | | ???????????????????????????????### ### ## #?# | | ???????????????????????????????# #### | | ???????????????????????????????# ## #?# | | ?????????########?#######??????# ## ##? | | ????????## ### ## ####???# ## ## | | ###?????# ## #???# ## # | | ####### #???# #### | | ### ##?## ##??# | | ## ##R ### ##??## | | ## ##@ #???# | | #### ### ## #??# ## | | ####### ## #?# ### #?# ### | | ??## ## ### #?#### #?# #?# ## | | #?# ## #?###????## #?# ##### | | #?# ### #????????## #?# ### ## | | #?# ##?## #????????## #### ## ### | | ### ##???## #???????##### ### | | #?????### #?????##### ### | | #????????#####?????# ## #?#### | | # ##????????????????## ## ##????? | | ### #???????????###### ###### ##?????? | | ??# # ###??????????## #????? #??????? | | #?# ###????????????# ##????? #??????# | | ### ##??????????????# ##?????? #????## | | #?????????????### ##??????# #???# | | ######????????# #???????## #?## | | #????????## #????????# ### | | #???????# # ### ##?????????#### | | ## [ #???????## ####?####????????????# | | #### ##????????# " #???????????????????# | | #??# ###?????????# ###???#####?????????# | | #?? #???????????# # #####"""#?????????## # | | #??#### #??????????# # # ## "##?????????###? | | #?????? #??????????##### #" "#????????????? | +----------------------------------------------------+ Best States ------------- Heat Dissipation 25 Energy Generation 15 Energy Capacity 250 Matter Stores 300 Matter Capacity 300 Sight Range 16 Terrain Scan Density 10 Armor Coverage 150 Resistance: KI 10 Evasion (%) 40 Recoil Reduction 2 Item Schematics ----------------- None Robot Schematics ------------------ None Fabricated ------------ Nothing Alien Tech Used ----------------- None Achievements -------------- None Challenges ------------ None Game ------ Seed ReflectiveRainbowFacilitator Manual? 0 Play Time 00:31:28 Cumulative 602.0 hours Start 2024.07.28 @ 11:04:14 End 2024.07.28 @ 11:35:17 Sessions 1 Manual Loads 0 Difficulty Rogue Special Mode None Game No. 659 Rogue 572 Adventurer 87 Explorer 0 Win Type - Total 35 Types 8/0/21/1/1/1/3/0/0 Lore% 92 Gallery% 92 Achievement% 79 Wizard Run 0 Options --------- Layout 0 ASCII 0 Keyboard 1 Movement Numpad Keybinds 0 Fullscreen 2 Font 16/SmallcapsGlow Map View 88x55 Zoom Use 0% Tactical HUD 1 Map Filters NONE Filters NONE Steam 1 RUN: d1a749a5-0cde-4dca-9b3c-90d51f009c8e